Cogmind - Beta 15 --- EXPLORER MODE // 2025.05.31 @ 18:14:51 Player: tcfire Result: Destroyed by H-88 Terminator with KE Penetrator Performance ------------- Evolutions (8) 4000 Regions Visited (17) 3400 Robots Destroyed (353) 1765 Value Destroyed (16261) 16261 Prototype IDs (25) 500 Alien Tech Used (0) 0 Bonus (928) 928 TOTAL SCORE: 26854 Bonus ------- High Alert Combat Kills 228 Entered Garrisons 200 Scanned by Researcher 500 Cogmind --------- Core Integrity 0/1450 Matter 230/300 Energy 71/100 System Corruption 16% Temperature Cool (0) Movement Core (50) Location -2/Testing Parts ------- > --- POWER (4) -------- (None) > --- PROPULSION (6) --- (None) > --- UTILITY (10) ----- (None) > --- WEAPON (4) ------- (None) > --- INVENTORY (5) ---- Enhanced Nova Cannon Linear Accelerator Peak State ------------ > --- POWER ------------ Neutrino Core Light Antimatter Reactor Light Antimatter Reactor Light Antimatter Reactor > --- PROPULSION ------- VSS Leg Myomer Leg Myomer Leg Myomer Leg Biometal Leg > --- UTILITY ---------- Advanced Heat Sink Advanced Heat Sink Experimental Heat Sink Weapon Cycler Phase Shifter Layered Medium Armor Plating Graphene Brace Advanced Thermal Shield Improved Force Field > --- WEAPON ----------- Proton Burst Cannon Heavy Phase Cannon Enhanced Hardcell Cannon Enhanced Hardcell Cannon > --- INVENTORY -------- Advanced Power Amplifier Enhanced Hardcell Cannon Enhanced Hardcell Cannon Enhanced Hardcell Cannon Enhanced Hardcell Cannon [Rating: 147] Favorites ----------- Power Light Angular Momentum Engine Engine Light Angular Momentum Engine Power Core Neutrino Core Reactor Light Antimatter Reactor Propulsion Flexi-carbon Leg Treads Biometal Heavy Treads Leg Flexi-carbon Leg Flight Unit Q-thruster Utility Advanced Heat Sink Device Advanced Heat Sink Storage Medium Storage Unit Processor Targeting Computer Hackware Authchip [Weapon] Protection Hardened Light Armor Plating Weapon Improved Light Cannon Energy Gun Tesla Rifle Energy Cannon Cooled Plasma Cannon Ballistic Gun KE Penetrator Ballistic Cannon Improved Light Cannon Build | -11 -10 -9 -8 -8 -8 -8 -6 -5 -5 -5 -5 -5 -4 -3 -3 -2 -2 ------- Run | Yrd Mat Mat Mat Sto Gar Rec Fac Fac Ext Cet Arc Hub Fac Res Arm Res Tes Slots Evolved 17 | . 1 2 2 . . . 4 2 . . . . 2 2 . 2 . Power 3 | . . . . . . . 1 1 . . . . . 1 . . . Propulsion 4 | . . 1 . . . . 1 . . . . . 1 . . 1 . Utility 8 | . 1 1 1 . . . 2 . . . . . 1 1 . 1 . Weapon 2 | . . . 1 . . . . 1 . . . . . . . . . Parts Attached 173 | 7 5 10 5 1 9 2 27 6 8 1 1 4 24 4 30 16 13 Power 31 | 1 1 1 . . 1 . 6 . 2 . 1 . 4 . 7 3 4 Engine 7 | 1 . 1 . . 1 . 4 . . . . . . . . . . Core 5 | . 1 . . . . . 2 . 1 . . . 1 . . . . Reactor 19 | . . . . . . . . . 1 . 1 . 3 . 7 3 4 Propulsion 43 | 2 . 3 . . 5 . 4 . 3 . . 2 6 2 10 3 3 Treads 4 | . . . . . . . . . . . . . . . . 3 1 Leg 28 | 2 . 3 . . 5 . 4 . 3 . . 2 6 2 . . 1 Wheel . | . . . . . . . . . . . . . . . . . . Hover . | . . . . . . . . . . . . . . . . . . Flight 11 | . . . . . . . . . . . . . . . 10 . 1 Utility 50 | 2 2 1 2 1 1 1 12 3 1 1 . 2 9 . 4 7 1 Device 30 | . 2 . . . 1 . 6 3 1 1 . 1 9 . 3 2 1 Storage 5 | . . 1 . . . . 2 . . . . . . . . 2 . Processor 2 | 1 . . 1 . . . . . . . . . . . . . . Hackware 2 | . . . . . . . 2 . . . . . . . . . . Protection 11 | 1 . . 1 1 . 1 2 . . . . 1 . . 1 3 . Artifact . | . . . . . . . . . . . . . . . . . . Weapon 49 | 2 2 5 3 . 2 1 5 3 2 . . . 5 2 9 3 5 Energy Gun 4 | 1 . . . . . . . . . . . . 2 . 1 . . Energy Cannon 17 | . 2 1 1 . 1 1 4 2 . . . . 1 1 1 1 1 Ballistic Gun 10 | 1 . 1 . . 1 . . 1 1 . . . . 1 2 . 2 Ballistic Cannon 18 | . . 3 2 . . . 1 . 1 . . . 2 . 5 2 2 Launcher . | . . . . . . . . . . . . . . . . . . Special Weapon . | . . . . . . . . . . . . . . . . . . Impact Weapon . | . . . . . . . . . . . . . . . . . . Slashing Weapon . | . . . . . . . . . . . . . . . . . . Piercing Weapon . | . . . . . . . . . . . . . . . . . . Special Melee Weapon . | . . . . . . . . . . . . . . . . . . Unidentified Prototypes 16 | . . 3 . . . . 3 1 . . . . 2 2 2 . 3 Corrupted Parts 4 | . . . . . . . 2 . . . . . 2 . . . . System Corruption 5 | . . . . . . . 3 . . . . . 2 . . . . Parts Lost 91 | . 1 . 2 . 7 1 4 1 5 3 1 3 7 1 29 4 22 Power 23 | . . . 1 . . . 1 1 1 . 1 . 2 . 8 2 6 Propulsion 23 | . . . . . 3 . . . 2 1 . 2 1 . 9 . 5 Utility 26 | . . . 1 . 1 . 3 . 1 2 . . 2 1 8 2 5 Weapon 19 | . 1 . . . 3 1 . . 1 . . 1 2 . 4 . 6 Highest Loss Streak 18 | . 1 . 1 . 2 1 3 1 2 3 1 1 6 1 8 2 18 To Critical Strikes 1 | . . . . . . . . . . . . . . . . . 1 Average Backups 5 | . 2 4 4 5 4 5 7 8 8 3 3 4 3 3 3 2 1 Power . | . . 1 . . 1 1 . . . . . . . 1 . 1 . Propulsion . | . . . . 1 . 1 . 1 . . . . . . . . . Utility 1 | . . . . . . 2 2 3 3 . . 1 2 1 . . . Weapon 2 | . 1 2 2 4 2 1 3 3 4 3 3 1 . 1 2 . . Tool/Special . | . . . . . . . . . . . . . . . . . . Unused Backups 13 | . . 2 . . . 1 3 . . . . 1 . . 4 2 . Power 1 | . . . . . . 1 . . . . . . . . . . . Propulsion 1 | . . . . . . . . . . . . . . . . 1 . Utility 2 | . . . . . . . 2 . . . . . . . . . . Weapon 9 | . . 2 . . . . 1 . . . . 1 . . 4 1 . Tool/Special . | . . . . . . . . . . . . . . . . . . Average Slot Usage (%) 89 | . 95 90 96 100 96 99 97 97 96 92 93 93 89 98 78 47 39 Engine 3 | . 8 . . 8 8 8 7 3 . . . . . . . . . Core 4 | . 4 9 7 . . . 3 11 12 11 11 11 8 3 1 . . Reactor 3 | . . . . . . . . . 3 5 4 5 6 13 12 5 8 Leg 20 | . 25 29 25 25 23 25 25 22 20 17 16 15 17 22 18 . . Device 17 | . 8 10 8 8 8 8 15 20 21 23 27 27 33 35 28 3 5 Storage 5 | . . . 8 8 8 8 9 6 6 5 5 5 . . . 4 . Processor 5 | . 12 10 13 16 16 16 5 . . . . . . . . . . Protection 6 | . 12 10 7 8 6 7 7 10 8 5 5 5 5 4 1 9 6 Energy Cannon 9 | . 4 5 8 8 8 13 13 15 13 6 11 6 6 4 3 3 2 Ballistic Gun 1 | . 9 2 . . 1 . . . . 4 . 3 3 2 . 2 . Ballistic Cannon 8 | . . 11 16 16 14 10 4 5 7 11 11 11 7 10 8 4 5 Peak Build Rating 147 | 7 12 20 25 27 38 38 71 86 93 83 84 92 125 140 147 124 142 Average Rating 70 | 4 9 15 22 25 30 36 61 83 86 80 82 86 104 135 121 109 91 On Entrance 61 | . 7 11 19 25 27 36 38 70 86 82 83 84 90 123 140 61 123 Naked Turns 58 | . . . . . . . . . . . . . . . . . 58 Heaviest Build 142 | 11 17 27 37 44 44 39 84 102 108 86 92 92 108 121 127 108 142 Greatest Support 225 | 20 26 39 39 39 50 50 80 80 80 65 50 75 115 115 115 225 210 Greatest Overweight (x) 7 | 2 . . . 1 2 . 1 1 2 1 1 2 2 1 7 1 4 Average Overweight (x) . | . . . . . . . . 1 1 1 1 1 . . . . . Largest Inventory Capacity 10 | 5 5 10 10 10 10 10 10 10 10 10 5 5 5 5 5 5 5 Average Capacity 7 | 5 5 5 10 10 10 10 10 10 10 5 5 5 5 5 5 5 5 Most Carried 10 | 3 5 5 6 7 7 7 10 10 10 5 4 5 5 5 5 5 3 Average Carried 5 | . 2 4 4 5 4 5 7 8 8 3 3 4 3 3 3 2 1 Final Capacity 10 | 5 5 10 10 10 10 10 10 10 10 5 5 5 5 5 5 5 5 Final Carried 10 | . 3 4 5 6 5 7 9 10 5 3 4 4 4 5 5 1 2 Class Distribution -------------------- 29% | Hacker-Gunner 27% | Hacker-Tank 21% | Scavenger-Tank 9% | Generator-Tank 7% | Hacker-Mutant 3% | Scavenger-Gunner Dominant Class ---------------- Hacker-Mutant | -10/Materials Hacker-Mutant | -9/Materials Hacker-Gunner | -8/Materials Hacker-Gunner | -8/Storage Hacker-Gunner | -8/Garrison Hacker-Gunner | -8/Recycling Hacker-Tank | -6/Factory Hacker-Tank | -5/Factory Scavenger-Tank | -5/Extension Scavenger-Tank | -5/Cetus Scavenger-Tank | -5/Archives Scavenger-Tank | -5/Hub_04(d) Scavenger-Tank | -4/Factory Generator-Tank | -3/Research Generator-Tank | -3/Armory Hacker-Tank | -2/Research Hacker-Tank | -2/Testing Resources | -11 -10 -9 -8 -8 -8 -8 -6 -5 -5 -5 -5 -5 -4 -3 -3 -2 -2 ----------- Run | Yrd Mat Mat Mat Sto Gar Rec Fac Fac Ext Cet Arc Hub Fac Res Arm Res Tes Matter Collected 8448 | 212 127 324 170 489 648 149 661 379 455 128 279 502 1242 335 1190 574 584 Remotely . | . . . . . . . . . . . . . . . . . . Salvage Created 14734 | . 285 640 382 721 1146 319 1900 1231 1646 128 315 871 1954 475 1355 561 805 Parts 672 | . 17 44 28 43 60 10 82 53 73 2 9 38 81 20 60 25 27 Haulers Intercepted 18 | . 1 5 . 3 . . 3 2 1 . . 1 1 . . 1 . Recyclers Shooed 7 | . . . . . . . 5 1 . . . . . . . . 1 Parts Field Recycled 8 | . . . . . . . . . . . . . . . . 5 3 Retrieved Matter 207 | . . . . . . . . . . . . . . . . 157 50 Parts Self-Destructed . | . . . . . . . . . . . . . . . . . . Prevented . | . . . . . . . . . . . . . . . . . . Kills | -11 -10 -9 -8 -8 -8 -8 -6 -5 -5 -5 -5 -5 -4 -3 -3 -2 -2 ------- Run | Yrd Mat Mat Mat Sto Gar Rec Fac Fac Ext Cet Arc Hub Fac Res Arm Res Tes Combat Hostiles Destroyed 258 | . 4 14 11 17 33 4 27 19 18 4 4 12 34 9 28 10 10 Guns 15 | . 4 . . . 2 . . . . 2 . 2 3 1 . 1 . Cannons 222 | . . 14 11 17 29 4 19 17 16 2 4 10 26 8 26 9 10 AOE 8 | . . . . . . . 3 2 . . . . 2 . 1 . . Classes Destroyed 20 | . 5 3 1 . 3 1 1 1 2 . . . . . 1 1 1 Worker 17 | . 1 . 1 . . . 4 2 2 . . 3 1 1 . 1 1 Builder 17 | . 1 . . . . . 2 6 1 . . 2 4 . . . 1 Tunneler 1 | . . . . . . . . . 1 . . . . . . . . Hauler 18 | . 1 5 . 3 . . 3 2 1 . . 1 1 . . 1 . Recycler 6 | . . . . . . 1 1 . 2 . . 1 . . . . 1 Mechanic 2 | . . . . . . . . 1 . . . . 1 . . . . Operator 4 | . . . 1 1 . . . . 1 . 1 . . . . . . Watcher 25 | . 2 2 1 1 . . 4 2 1 . . 2 6 . 4 . . Swarmer 52 | . . 5 2 5 9 . 5 . . . . . 6 4 8 4 4 Grunt 75 | . 4 4 7 3 10 . 6 7 12 . . 2 13 1 6 . . Brawler 5 | . . 1 . . 1 . 2 . . . . . 1 . . . . Duelist 2 | . . . . . . . 2 . . . . . . . . . . Researcher 5 | . . . . . . . . . . . . . . . . . 5 Sentry 59 | . . 4 2 9 6 4 4 4 4 . 4 4 5 3 5 1 . Demolisher 1 | . . . . . . . . . . . . . . . 1 . . Specialist 3 | . . . . . 1 . . . . . . . . . . 2 . Hunter 16 | . . . . . 3 . 2 4 . . . 3 . . 2 . 2 Programmer 36 | . . . . . 3 . 6 4 . . . 3 7 1 6 2 4 Heavy 1 | . . . . . . . . . . . . . . . . 1 . Behemoth 4 | . . . . . . . . . 2 . . . 2 . . . . Cetus Guard 4 | . . . . . . . . . . 4 . . . . . . . Best Kill Streak 15 | . 4 8 6 6 13 2 6 7 7 4 2 6 6 6 15 2 7 Combat Bots Only 13 | . 4 3 5 6 13 2 4 5 7 4 2 5 5 5 6 2 3 Max Kills in Single Turn 4 | . 3 2 2 1 2 1 3 4 2 1 1 1 3 2 2 1 2 Gunslinging 1 | . 1 . . . . . . . . . . . . . . . . Exploded 3 | . . . . . . . 3 2 . . . . 2 . 1 . . Melee . | . . . . . . . . . . . . . . . . . . Uniques/NPCs Destroyed . | . . . . . . . . . . . . . . . . . . Combat | -11 -10 -9 -8 -8 -8 -8 -6 -5 -5 -5 -5 -5 -4 -3 -3 -2 -2 -------- Run | Yrd Mat Mat Mat Sto Gar Rec Fac Fac Ext Cet Arc Hub Fac Res Arm Res Tes Hostile Shots Fired 2209 | . 15 45 52 61 193 14 122 96 76 42 20 57 220 20 439 122 615 Missed 716 | . 7 16 16 18 56 6 37 34 17 13 8 19 75 7 152 36 199 Hits 1493 | . 8 29 36 43 137 8 85 62 59 29 12 38 145 13 287 86 416 Melee 17 | . . . . . . . 5 . . . . . . . 10 . 2 Projectile 1476 | . 8 29 36 43 137 8 80 62 59 29 12 38 145 13 277 86 414 AOE 4 | . . . . . . . . . . . . . . . 4 . . Critical Strikes 73 | . . . 1 1 4 . 4 6 5 4 . 2 8 1 20 1 16 Actively Blocked 21 | . . . . . . . . . . . . . 2 1 18 . . Part Disruptions 2 | . . . . . . . . . . . . . 1 . . 1 . Damage Taken 18360 | . 160 219 305 319 874 73 1333 766 803 453 178 437 1309 86 3514 1954 5577 Core 3223 | . 51 12 34 82 81 . 144 167 135 62 31 20 320 . 619 148 1317 Absorbed by Shields 810 | . . . . . . . 78 . 42 . . . 476 88 126 . . Redirected to Shielding 50 | . . . . . . . . . . . . . . . 50 . . Ignored by Resistances 13509 | . 93 140 194 226 747 45 666 534 552 336 149 329 1919 148 3055 1104 3272 Regen/Repaired (Parts) 357 | . . . . . . . . 154 . . . . 203 . . . . Core Remaining (%) 75 | 100 79 97 . . . 64 83 . . . . 58 72 . 52 . . Volleys Fired 678 | . 19 36 28 41 70 16 76 45 40 12 12 35 105 9 60 34 40 Largest 4 | . 2 2 3 3 3 3 3 4 4 4 4 4 4 4 4 3 3 Hottest 348 | . 96 101 134 130 138 161 315 348 309 138 248 248 278 221 306 206 209 Shots Fired 1977 | . 34 72 84 123 199 47 203 124 152 48 47 139 321 36 186 58 104 Gun 230 | . 31 6 . . 14 4 . . 4 23 . 26 80 7 2 10 23 Cannon 1747 | . 3 66 84 123 185 43 203 124 148 25 47 113 241 29 184 48 81 Launcher . | . . . . . . . . . . . . . . . . . . Special . | . . . . . . . . . . . . . . . . . . Kinetic 1138 | . 16 55 56 82 130 28 53 45 60 47 23 96 168 27 133 36 83 Thermal 668 | . . 11 28 41 69 19 150 70 53 1 12 35 129 9 40 . 1 Explosive . | . . . . . . . . . . . . . . . . . . Electromagnetic 171 | . 18 6 . . . . . 9 39 . 12 8 24 . 13 22 20 Robot Hit Streak 35 | . 20 22 15 24 28 24 19 10 15 35 10 24 28 7 15 22 15 Robot Miss Streak 3 | . 1 1 1 1 2 1 1 3 3 1 1 3 3 1 3 3 2 Penetration Max 1 | . . . . . . . . . . 1 . 1 1 1 . . 1 Secondary Targets 1 | . 1 . . . . . . . . . . . . . . . . Max Gunslinging Chain 1 | . 1 . . . . . . . . . . . . . . . . Shots Hit Robots 1284 | . 27 52 53 76 113 28 126 67 88 39 30 87 240 20 116 44 78 Core Hits 535 | . 15 24 23 26 48 7 50 35 40 15 14 33 84 18 56 21 26 Critical Kills 16 | . . . . . 2 . 4 . 1 . . 1 5 1 1 1 . Critical Parts Destroyed 4 | . . . . . . . . . . . . . 1 . 1 1 1 Critical Strikes 65 | . . 2 2 3 3 2 5 4 4 1 2 3 12 3 8 5 6 Meltdown 12 | . . . . . 2 . 4 . 1 . . . 4 . 1 . . Destroy 10 | . . . . . . . . . . . . 1 3 1 1 3 1 Blast 40 | . . 2 2 3 1 2 1 3 3 1 2 1 5 2 6 2 4 Corrupt 3 | . . . . . . . . 1 . . . 1 . . . . 1 Melee Attacks . | . . . . . . . . . . . . . . . . . . Impact . | . . . . . . . . . . . . . . . . . . Slashing . | . . . . . . . . . . . . . . . . . . Piercing . | . . . . . . . . . . . . . . . . . . Sneak Attacks . | . . . . . . . . . . . . . . . . . . Combat Hostiles . | . . . . . . . . . . . . . . . . . . Follow-up Attacks . | . . . . . . . . . . . . . . . . . . Damage Inflicted 48239 | . 718 1084 1213 1796 2710 604 6120 5293 3798 1112 957 2821 8094 826 5650 1931 3512 Guns 3577 | . 250 35 . . 86 82 . . 67 471 . 464 1469 179 20 61 393 Cannons 42085 | . 76 1049 1213 1795 2624 493 5564 4189 3712 641 957 2326 6364 647 5455 1870 3110 Explosions 2401 | . 392 . . . . . 523 1092 . . . . 241 . 153 . . Melee . | . . . . . . . . . . . . . . . . . . Ramming 176 | . . . . 1 . 29 33 12 19 . . 31 20 . 22 . 9 Kinetic 24081 | . 109 842 726 1032 1593 327 654 1244 1087 1112 458 1696 4017 615 4056 1543 2970 Thermal 20288 | . 392 146 487 763 1117 248 4969 3837 1892 . 323 871 3761 211 1228 . 43 Explosive 384 | . . . . . . . 375 . . . . . . . 9 . . Electromagnetic 3310 | . 217 96 . . . . 89 200 800 . 176 223 296 . 335 388 490 Impact . | . . . . . . . . . . . . . . . . . . Slashing . | . . . . . . . . . . . . . . . . . . Piercing . | . . . . . . . . . . . . . . . . . . Highest Corruption 16 | . . . 1 1 1 1 12 1 1 1 1 1 2 . 6 4 16 Average Corruption 3 | . . . 1 1 1 1 8 1 1 1 1 1 1 . 4 2 6 Corruption Purged . | . . . . . . . . . . . . . . . . . . Corruption Blocked . | . . . . . . . . . . . . . . . . . . Effects 153 | . . . 1 5 6 10 63 2 7 2 2 1 7 . 23 5 19 Message Errors 30 | . . . . . 3 1 12 . 3 . . . 2 . 5 . 4 Matter Fused 34 | . . . 1 2 . 4 13 1 3 . . 1 1 . 2 1 5 Heat Flow Errors 15 | . . . . . . 3 8 . . . . . . . 2 1 1 Energy Discharges 22 | . . . . 1 1 . 9 1 . . . . 2 . 3 2 3 Parts Rejected 1 | . . . . . . . . . 1 . . . . . . . . Parts Fused 3 | . . . . . . . 1 . . . . . . . 1 . 1 Data Loss (minor) 23 | . . . . 2 . 1 11 . . . 1 . 2 . 5 . 1 Data Loss (major) 5 | . . . . . 1 . 2 . . . . . . . 2 . . Misfires 5 | . . . . . . 1 1 . . 1 . . . . 1 . 1 Alerts 4 | . . . . . . . 1 . . . 1 . . . 1 . 1 Misdirections 1 | . . . . . . . . . . . . . . . . . 1 Weapon Failures 10 | . . . . . 1 . 5 . . 1 . . . . 1 1 1 Overload Shots 169 | . . . . . . . 70 61 38 . . . . . . . . Effects 11 | . . . . . . . 1 7 3 . . . . . . . . Energy Bleed 2 | . . . . . . . . 1 1 . . . . . . . . Heat Surge 4 | . . . . . . . . 3 1 . . . . . . . . Short Circuit 5 | . . . . . . . 1 3 1 . . . . . . . . Overflow Damage 2769 | . 152 4 15 58 51 22 632 788 130 . 3 52 118 . 190 171 383 Projectiles 2118 | . 8 4 15 58 51 22 600 340 130 . 3 52 91 . 190 171 383 Explosions 651 | . 144 . . . . . 32 448 . . . . 27 . . . . Melee . | . . . . . . . . . . . . . . . . . . Knockbacks 111 | . . 9 8 4 13 . 5 7 3 . . 7 16 . 16 3 20 Impact 2 | . . . . . . . . 1 . . . . . . . . 1 Kinetic 99 | . . 8 8 4 9 . 5 6 2 . . 7 16 . 15 3 16 Secondary 10 | . . 1 . . 4 . . . 1 . . . . . 1 . 3 Self-Inflicted Damage 369 | . 83 . . . . . 145 . . . . . 46 . 93 . 2 Shots 11 | . 2 . . . . . 4 . . . . . 2 . 3 . . Rammed 2 | . . . . . . . . . . . . . . . . . 2 Targets Rammed 20 | . . . . 1 . 5 1 1 1 . . 1 2 . 6 . 2 Kicked 18 | . . . . 1 . 5 1 1 1 . . 1 2 . 6 . . Crushed . | . . . . . . . . . . . . . . . . . . Highest Temperature 643 | . 192 60 368 209 363 239 399 643 566 28 402 310 516 94 554 501 441 Average Temperature 127 | . 90 22 131 72 104 68 111 226 183 12 149 90 130 49 153 142 144 Received Heat Transfer 3673 | . 66 126 216 180 477 45 133 379 460 45 45 117 557 12 608 63 144 Effects 88 | . . . 2 . 1 . 2 23 15 . 1 . 19 . 9 9 7 Shutdowns 46 | . . . . . . . 1 13 11 . . . 8 . 5 3 5 Energy Bleed 10 | . . . . . 1 . 1 1 . . . . 3 . 2 1 1 Interference 15 | . . . 2 . . . . 3 . . 1 . 5 . 1 3 . Matter Decay 3 | . . . . . . . . . 1 . . . 2 . . . . Short Circuit 1 | . . . . . . . . . . . . . . . . . 1 Damage (minor) 3 | . . . . . . . . 1 2 . . . . . . . . Damage (major) 7 | . . . . . . . . 4 . . . . . . 1 2 . Damage (core) 3 | . . . . . . . . 1 1 . . . 1 . . . . Siege Activations . | . . . . . . . . . . . . . . . . . . Martial Activations . | . . . . . . . . . . . . . . . . . . Shielding Activations . | . . . . . . . . . . . . . . . . . . Robots Disrupted 1 | . . . . . . . . . 1 . . . . . . . . Combat Hostiles 1 | . . . . . . . . . 1 . . . . . . . . Robots Corrupted 3 | . . . . . . . . . 1 . . . . . . . 2 Combat Hostiles 1 | . . . . . . . . . 1 . . . . . . . . Parts Fried 17 | . . 1 . . . . . 2 4 . . 2 . . 1 2 5 Impact Corruptions 3 | . . . . . 1 . . . . . . . . . . . 2 Robots Melted 14 | . . . . . 2 . 5 . 1 . . . 5 . 1 . . Combat Hostiles 12 | . . . . . 2 . 5 . 1 . . . 3 . 1 . . Parts Melted 44 | . . . . . 7 . 14 2 8 . . . 12 . 1 . . Heat Transferred 26879 | . 300 259 814 1221 1850 444 6486 4120 2490 . 500 1300 5650 248 1160 . 37 Parts Sabotaged . | . . . . . . . . . . . . . . . . . . Parts Stolen . | . . . . . . . . . . . . . . . . . . Parts Stripped . | . . . . . . . . . . . . . . . . . . Power Chain Reactions 3 | . 1 . . . . . . . . . . . . . 2 . . Alert | -11 -10 -9 -8 -8 -8 -8 -6 -5 -5 -5 -5 -5 -4 -3 -3 -2 -2 ------- Run | Yrd Mat Mat Mat Sto Gar Rec Fac Fac Ext Cet Arc Hub Fac Res Arm Res Tes Maximum Alert Level 3 | . . . . 1 3 1 . 1 . . . . 1 . 1 . . Low Security (%) 84 | 100 100 100 100 67 9 87 100 78 100 100 100 100 97 100 56 100 100 Level 1 9 | . . . . 32 20 12 . 21 . . . . 2 . 43 . . Level 2 5 | . . . . . 62 . . . . . . . . . . . . Level 3 . | . . . . . 7 . . . . . . . . . . . . Level 4 . | . . . . . . . . . . . . . . . . . . Level 5 . | . . . . . . . . . . . . . . . . . . High Security . | . . . . . . . . . . . . . . . . . . Max Security . | . . . . . . . . . . . . . . . . . . Peak Influence 915 | . 137 179 133 253 915 318 123 238 106 45 51 147 273 131 387 71 127 Initial 297 | . . 34 42 35 95 297 100 24 58 25 . . 10 94 37 5 20 Average 101 | . 42 64 60 171 499 49 18 130 29 11 17 47 70 42 169 20 48 Influence Increases 8883 | . 184 411 306 518 890 102 1065 728 503 101 103 455 1208 273 986 368 682 Destroy 0b10 Robot/C 5260 | . 80 280 220 340 660 80 540 380 360 80 80 240 680 180 560 200 300 Destroy 0b10 Robot/NC 460 | . 25 35 15 25 5 10 70 65 45 . 5 45 65 5 20 10 15 Destroy Leader 1234 | . 26 94 62 118 40 . 174 108 42 . . 86 184 60 148 52 40 Allied During Kill 3 | . . . . . . . . . 3 . . . . . . . . Successful Hack 99 | . . . . . 10 7 22 18 3 7 . . 18 8 . 6 . Disable Machine 312 | . 24 . 4 20 . . 64 36 8 4 8 24 72 4 28 4 12 Anti-Garrison Action 100 | . . . . . 100 . . . . . . . . . . . . Destroy Structure 820 | . 29 2 5 15 60 5 80 76 42 10 10 60 174 16 170 21 45 Advance Influence 100 | . . . . . . . 100 . . . . . . . . . . Partial Spotted 15 | . . . . . . . . . . . . . 15 . . . . Lose Combat Pursuer 480 | . . . . . 15 . 15 45 . . . . . . 60 75 270 Influence Decreases 8833 | . 70 384 329 443 168 1017 997 633 605 162 103 424 996 419 1068 334 681 Entered New Map 1432 | . . 80 99 83 98 618 . 44 105 36 . . 21 149 60 10 29 Time Decay 6580 | . 60 304 210 360 . 389 990 579 420 96 101 394 963 260 718 304 432 Lost Part 781 | . 10 . 20 . 70 10 7 10 40 30 2 30 12 10 290 20 220 Lost Ally 40 | . . . . . . . . . 40 . . . . . . . . Squads Dispatched 55 | . . . 2 3 . . 15 3 2 . . 4 7 2 5 4 8 Investigation 5 | . . . . . . . 1 . 1 . . 1 . 1 . 1 . Extermination 20 | . . . . . . . 7 1 . . . 2 3 1 3 1 2 Reinforcement 23 | . . . 2 . . . 4 2 1 . . . 4 . 2 2 6 Assault . | . . . . . . . . . . . . . . . . . . Garrison 7 | . . . . 3 . . 3 . . . . 1 . . . . . Intercept . | . . . . . . . . . . . . . . . . . . Searches Triggered . | . . . . . . . . . . . . . . . . . . Construction Impeded 4 | . . . . . . . 2 . . . . . 2 . . . . Haulers Reinforced 2 | . . . . . . . 1 1 . . . . . . . . . Active Scanning Responses . | . . . . . . . . . . . . . . . . . . Cargo Convoy Interrupts . | . . . . . . . . . . . . . . . . . . Stealth | -11 -10 -9 -8 -8 -8 -8 -6 -5 -5 -5 -5 -5 -4 -3 -3 -2 -2 --------- Run | Yrd Mat Mat Mat Sto Gar Rec Fac Fac Ext Cet Arc Hub Fac Res Arm Res Tes Distress Signals 23 | . . . 1 2 . . 1 1 3 1 . 1 2 . 2 1 8 Communications Jammed . | . . . . . . . . . . . . . . . . . . Distress Signals . | . . . . . . . . . . . . . . . . . . Times Spotted 365 | . 6 15 15 20 34 2 35 27 18 5 4 14 42 7 52 15 54 Peak Tracking Total 15 | . 3 3 4 4 9 2 3 6 6 5 2 5 4 3 14 4 15 Tactical Retreats 18 | . . . . . 1 . 1 3 . . . . . . 2 3 8 Traps | -11 -10 -9 -8 -8 -8 -8 -6 -5 -5 -5 -5 -5 -4 -3 -3 -2 -2 ------- Run | Yrd Mat Mat Mat Sto Gar Rec Fac Fac Ext Cet Arc Hub Fac Res Arm Res Tes Traps Triggered 11 | . . . 1 . 2 . 2 . . . . 1 1 1 1 . 2 Indirectly . | . . . . . . . . . . . . . . . . . . Trap Hack Attempts . | . . . . . . . . . . . . . . . . . . Triggered . | . . . . . . . . . . . . . . . . . . Disarmed . | . . . . . . . . . . . . . . . . . . Reprogrammed . | . . . . . . . . . . . . . . . . . . Reused . | . . . . . . . . . . . . . . . . . . Traps Extracted . | . . . . . . . . . . . . . . . . . . Installed . | . . . . . . . . . . . . . . . . . . Triggered . | . . . . . . . . . . . . . . . . . . Machines | -11 -10 -9 -8 -8 -8 -8 -6 -5 -5 -5 -5 -5 -4 -3 -3 -2 -2 ---------- Run | Yrd Mat Mat Mat Sto Gar Rec Fac Fac Ext Cet Arc Hub Fac Res Arm Res Tes Machines Disabled 82 | . 6 . 1 5 1 . 16 9 5 1 2 6 18 1 7 1 3 Max in Single Turn 6 | . 6 . 1 2 1 . 6 5 2 1 1 2 5 1 3 1 1 Machines Repaired . | . . . . . . . . . . . . . . . . . . Machines Dismantled . | . . . . . . . . . . . . . . . . . . Machines Sabotaged . | . . . . . . . . . . . . . . . . . . Overloaded Fab Kills . | . . . . . . . . . . . . . . . . . . Hacking | -11 -10 -9 -8 -8 -8 -8 -6 -5 -5 -5 -5 -5 -4 -3 -3 -2 -2 --------- Run | Yrd Mat Mat Mat Sto Gar Rec Fac Fac Ext Cet Arc Hub Fac Res Arm Res Tes Machines Accessed 25 | . . . . 1 2 3 5 2 3 1 . 1 2 1 3 1 . Terminals 15 | . . . . . 2 3 1 1 3 1 . 1 . . 3 . . Fabricators 2 | . . . . . . . 2 . . . . . . . . . . Repair Stations 4 | . . . . . . . . 1 . . . . 2 1 . . . Recycling Units 1 | . . . . . . . . . . . . . . . . 1 . Scanalyzers 2 | . . . . . . . 2 . . . . . . . . . . Garrison Access 1 | . . . . 1 . . . . . . . . . . . . . Total Hacks 63 | . . . . 1 4 9 20 3 6 2 . 3 4 4 4 3 . Successful 47 | . . . . 1 2 9 14 3 4 1 . 2 4 1 3 3 . Failed 16 | . . . . . 2 . 6 . 2 1 . 1 . 3 1 . . Catastrophic . | . . . . . . . . . . . . . . . . . . Database Lockouts . | . . . . . . . . . . . . . . . . . . Manual 2 | . . . . . . . . . . 2 . . . . . . . Terminals 32 | . . . . . 4 9 3 1 6 2 . 3 . . 4 . . Fabricators 9 | . . . . . . . 9 . . . . . . . . . . Repair Stations 10 | . . . . . . . . 2 . . . . 4 4 . . . Recycling Units 3 | . . . . . . . . . . . . . . . . 3 . Scanalyzers 8 | . . . . . . . 8 . . . . . . . . . . Garrison Access 1 | . . . . 1 . . . . . . . . . . . . . Terminal Hacks 25 | . . . . . 2 9 3 1 4 1 . 2 . . 3 . . Record 10 | . . . . . . 5 3 . 1 . . 1 . . . . . Prototype ID Bank 1 | . . . . . . . . . 1 . . . . . . . . Open Door 6 | . . . . . . . . 1 1 1 . . . . 3 . . Emergency Access Points 1 | . . . . . 1 . . . . . . . . . . . . Alert Level 3 | . . . . . . 1 . . 1 . . 1 . . . . . Dispatch Records 1 | . . . . . . 1 . . . . . . . . . . . Registered Prototypes 1 | . . . . . . 1 . . . . . . . . . . . Zone Layout 1 | . . . . . . 1 . . . . . . . . . . . Security Stations 1 | . . . . . 1 . . . . . . . . . . . . Fabricator Hacks 5 | . . . . . . . 5 . . . . . . . . . . Load Schematic 3 | . . . . . . . 3 . . . . . . . . . . Build 2 | . . . . . . . 2 . . . . . . . . . . Repair Station Hacks 7 | . . . . . . . . 2 . . . . 4 1 . . . Scan Component 4 | . . . . . . . . 1 . . . . 2 1 . . . Repair 3 | . . . . . . . . 1 . . . . 2 . . . . Recycling Unit Hacks 3 | . . . . . . . . . . . . . . . . 3 . Recycle Component 1 | . . . . . . . . . . . . . . . . 1 . Process 1 | . . . . . . . . . . . . . . . . 1 . Retrieve Matter 1 | . . . . . . . . . . . . . . . . 1 . Scanalyzer 6 | . . . . . . . 6 . . . . . . . . . . Insert Component 3 | . . . . . . . 3 . . . . . . . . . . Analyze 3 | . . . . . . . 3 . . . . . . . . . . Garrison Access Hacks 1 | . . . . 1 . . . . . . . . . . . . . Unlock Access 1 | . . . . 1 . . . . . . . . . . . . . Unauthorized Hacks . | . . . . . . . . . . . . . . . . . . Terminals . | . . . . . . . . . . . . . . . . . . Fabricators . | . . . . . . . . . . . . . . . . . . Repair Stations . | . . . . . . . . . . . . . . . . . . Recycling Units . | . . . . . . . . . . . . . . . . . . Scanalyzers . | . . . . . . . . . . . . . . . . . . Garrison Access . | . . . . . . . . . . . . . . . . . . Data Cores Recovered 2 | . . . . 1 . . . . 1 . . . . . . . . Used . | . . . . . . . . . . . . . . . . . . Hacking Detections 18 | . . . . . 2 2 5 2 2 . . 1 . 1 2 1 . Full Trace Events 6 | . . . . . . 2 1 . 1 . . 1 . . . 1 . Feedback Events . | . . . . . . . . . . . . . . . . . . Feedback Blocked . | . . . . . . . . . . . . . . . . . . Robot Schematics Acquired . | . . . . . . . . . . . . . . . . . . Robots Built . | . . . . . . . . . . . . . . . . . . Authchips . | . . . . . . . . . . . . . . . . . . Time . | . . . . . . . . . . . . . . . . . . Total Robot Build Rating . | . . . . . . . . . . . . . . . . . . Part Schematics Acquired 10 | . . . . . . . 3 . . . . . . . . . 7 Parts Built 2 | . . . . . . . 2 . . . . . . . . . . Authchips 2 | . . . . . . . 2 . . . . . . . . . . Time 304 | . . . . . . . 304 . . . . . . . . . . Total Part Build Rating 10 | . . . . . . . 10 . . . . . . . . . . Parts Repaired 2 | . . . . . . . . 1 . . . . 1 . . . . Time 139 | . . . . . . . . 10 . . . . 129 . . . . Parts Recycled 1 | . . . . . . . . . . . . . . . . 1 . Recycled Matter 123 | . . . . . . . . . . . . . . . . 123 . Retrieved Matter 123 | . . . . . . . . . . . . . . . . 123 . Retrieved Components . | . . . . . . . . . . . . . . . . . . Parts Scanalyzed 3 | . . . . . . . 3 . . . . . . . . . . Part Schematics Acquired 3 | . . . . . . . 3 . . . . . . . . . . Parts Damaged . | . . . . . . . . . . . . . . . . . . Bothacking | -11 -10 -9 -8 -8 -8 -8 -6 -5 -5 -5 -5 -5 -4 -3 -3 -2 -2 ------------ Run | Yrd Mat Mat Mat Sto Gar Rec Fac Fac Ext Cet Arc Hub Fac Res Arm Res Tes Used RIF Installer . | . . . . . . . . . . . . . . . . . . Robots Hacked . | . . . . . . . . . . . . . . . . . . Non-combat . | . . . . . . . . . . . . . . . . . . Combat . | . . . . . . . . . . . . . . . . . . Robot Hacks Applied . | . . . . . . . . . . . . . . . . . . Relay Couplers Released 3 | . . . . . . . . . . . . . . 3 . . . Programmers 3 | . . . . . . . . . . . . . . 3 . . . Fabnet Peak Effective % . | . . . . . . . . . . . . . . . . . . Robots Rewired . | . . . . . . . . . . . . . . . . . . Allies Hacked . | . . . . . . . . . . . . . . . . . . Hacks Repelled . | . . . . . . . . . . . . . . . . . . Allies | -11 -10 -9 -8 -8 -8 -8 -6 -5 -5 -5 -5 -5 -4 -3 -3 -2 -2 -------- Run | Yrd Mat Mat Mat Sto Gar Rec Fac Fac Ext Cet Arc Hub Fac Res Arm Res Tes Total Allies 3 | . . . . . . . . . 3 . . . . . . . . Largest Group 2 | . . . . . . . . . 2 . . . . . . . . Highest-Rated Group 159 | . . . . . . . . . 159 . . . . . . . . Highest-Rated Ally 159 | . . . . . . . . . 159 . . . . . . . . Initial Warlord ECA Mod 2 | . . . . . . 2 . . . . . . . . . . . Total Orders . | . . . . . . . . . . . . . . . . . . Ally Attacks 23 | . . . . . . . . . 23 . . . . . . . . Total Damage 490 | . . . . . . . . . 490 . . . . . . . . Kills . | . . . . . . . . . . . . . . . . . . Allies Corrupted . | . . . . . . . . . . . . . . . . . . Allies Melted . | . . . . . . . . . . . . . . . . . . Intel | -11 -10 -9 -8 -8 -8 -8 -6 -5 -5 -5 -5 -5 -4 -3 -3 -2 -2 ------- Run | Yrd Mat Mat Mat Sto Gar Rec Fac Fac Ext Cet Arc Hub Fac Res Arm Res Tes Active Infowar (turns) 7 | . . . . . . . . . . . . . . . . . 7 Cloaking 7 | . . . . . . . . . . . . . . . . . 7 Robot Analysis Total . | . . . . . . . . . . . . . . . . . . Derelict Logs Recovered . | . . . . . . . . . . . . . . . . . . Drone Launches . | . . . . . . . . . . . . . . . . . . Drone Recoveries . | . . . . . . . . . . . . . . . . . . Exploration | -11 -10 -9 -8 -8 -8 -8 -6 -5 -5 -5 -5 -5 -4 -3 -3 -2 -2 ------------- Run | Yrd Mat Mat Mat Sto Gar Rec Fac Fac Ext Cet Arc Hub Fac Res Arm Res Tes Turns Passed 14261 | 61 199 453 292 491 1297 1608 2753 913 752 243 199 667 1522 492 1076 539 704 Spaces Moved 8087 | 44 112 258 158 245 650 1241 1533 376 311 107 87 284 653 324 777 366 561 Core 332 | 15 . . . . . . . . . . . . . . 55 . 262 Treads 459 | . . . . . . . . . . . . . . . . 236 223 Legs 6897 | 29 112 258 158 245 650 1241 1533 376 311 107 87 284 653 324 497 . 32 Wheels . | . . . . . . . . . . . . . . . . . . Hover . | . . . . . . . . . . . . . . . . . . Flight 399 | . . . . . . . . . . . . . . . 225 130 44 Fastest Speed 28 | 50 120 120 120 120 120 120 120 197 190 190 190 190 120 112 28 28 30 Average Speed 138 | 107 120 120 120 144 160 120 139 197 195 190 190 192 166 136 101 106 93 Slowest Speed 400 | 150 120 120 120 190 260 120 197 197 260 190 190 260 260 190 400 145 250 Overloaded Moves . | . . . . . . . . . . . . . . . . . . Propulsion Burnouts . | . . . . . . . . . . . . . . . . . . Robots Hopped 1 | . . . . . . . . . . . . . . . 1 . . Potential Cave-ins 9 | . . . . . . . 9 . . . . . . . . . . Cave-ins Triggered 4 | . . . . . . . 3 . . . . . . . 1 . . Exploration Rate (%) 43 | 3 40 34 22 53 78 94 42 13 58 63 81 29 25 13 52 13 73 Regions Visited 17 Branch Regions 8 Pre-discovered Areas . | . . . . . . . . . . . . . . . . . . Known Exits Taken 16 | 1 1 1 1 1 . 1 1 1 1 1 1 1 1 1 1 1 . Unknown Exits Taken . | . . . . . . . . . . . . . . . . . . Scrap Searched . | . . . . . . . . . . . . . . . . . . Spaces Dug 26 | . . . . . . 2 20 . . . . 3 . . . 1 . Terrain Destroyed 494 | . 29 1 5 11 1 3 96 35 21 3 7 33 108 7 113 6 15 Melee . | . . . . . . . . . . . . . . . . . . Projectile 264 | . . 1 5 11 1 3 35 19 21 3 7 33 42 7 55 6 15 AOE 230 | . 29 . . . . . 61 16 . . . . 66 . 58 . . Terrain Rammed . | . . . . . . . . . . . . . . . . . . Walls Destroyed . | . . . . . . . . . . . . . . . . . . Machines Disabled . | . . . . . . . . . . . . . . . . . . Actions | -11 -10 -9 -8 -8 -8 -8 -6 -5 -5 -5 -5 -5 -4 -3 -3 -2 -2 --------- Run | Yrd Mat Mat Mat Sto Gar Rec Fac Fac Ext Cet Arc Hub Fac Res Arm Res Tes Total 9852 | 57 145 332 196 290 752 1323 1994 477 377 122 104 336 942 356 948 454 647 Wait 524 | . 2 . . . 5 53 296 36 . . 3 . 106 . 8 12 3 Move 8064 | 43 111 257 157 244 646 1240 1531 375 310 106 86 283 652 323 774 365 561 Hop 1 | . . . . . . . . . . . . . . . 1 . . Pick Up 206 | 7 6 15 5 2 8 5 34 6 8 . 2 5 27 9 36 16 15 Fast Attach . | . . . . . . . . . . . . . . . . . . Attach 142 | 7 3 3 4 . 6 2 18 7 8 2 1 3 16 3 27 17 15 Detach 12 | . . . . . . . 2 2 . . . . 1 . 4 1 2 Swap 89 | . 3 9 2 1 4 1 19 3 5 2 . 2 18 7 8 2 3 Drop 97 | . 1 12 . 1 3 1 16 2 5 . . 2 15 5 24 7 3 Fire 678 | . 19 36 28 41 70 16 76 45 40 12 12 35 105 9 60 34 40 Melee . | . . . . . . . . . . . . . . . . . . Ram 2 | . . . . . . . . . . . . . . . . . 2 Kick 18 | . . . . 1 . 5 1 1 1 . . 1 2 . 6 . . Crush 1 | . . . . . . . . . . . . . . . . . 1 Escape Stasis 18 | . . . . . 10 . 1 . . . . 5 . . . . 2 Rewire . | . . . . . . . . . . . . . . . . . . Trap . | . . . . . . . . . . . . . . . . . . Miscellaneous . | . . . . . . . . . . . . . . . . . . Route ------- -11/Scrapyard -10/Materials -9/Materials (discovered 2 exits: *Mat / *Min) -8/Materials -8/Storage -8/Garrison (discovered 3 exits: *Rec x3) -8/Recycling -6/Factory (discovered 2 exits: *Fac / *Low) -5/Factory -5/Extension (discovered 2 exits: *Fac / *Cet) -5/Cetus -5/Archives (discovered 3 exits: *Fac / *Hub x2) -5/Hub_04(d) (discovered 3 exits: *Fac x3) -4/Factory -3/Research (discovered 2 exits: *Arm / *Qua) -3/Armory -2/Research -2/Testing History --------- Turn | Location | Event 46 | -11/Scrapyard | Identified exit to Materials 46 | -11/Scrapyard | Discovered exit to Materials (range 13) 62 | -11/Scrapyard | Entered Materials 62 | -10/Materials | Evolved 1 slot: Utility x1 235 | -10/Materials | Identified exit to Materials 235 | -10/Materials | Discovered exit to Materials (range 15) 261 | -10/Materials | Entered another Materials area 261 | -9/Materials | Evolved 2 slots: Propulsion x1, Utility x1 309 | -9/Materials | Build established: Hacker-Mutant 571 | -9/Materials | Identified exit to Mines 571 | -9/Materials | Discovered exit to Mines (range 16) 664 | -9/Materials | Identified exit to Materials 664 | -9/Materials | Discovered exit to Materials (range 15) 714 | -9/Materials | Entered another Materials area 714 | -8/Materials | Evolved 2 slots: Utility x1, Weapon x1 987 | -8/Materials | Identified exit to Storage 987 | -8/Materials | Discovered exit to Storage (range 16) 1006 | -8/Materials | Entered Storage 1016 | -8/Storage | Build established: Hacker-Gunner 1046 | -8/Storage | Garrison activated, responded to threat 1495 | -8/Storage | Identified exit to Garrison 1497 | -8/Storage | Entered Garrison 1605 | -8/Garrison | Triggered checkpoint 1683 | -8/Garrison | Destroyed 13 combat bots 1765 | -8/Garrison | Identified exit to Recycling 1765 | -8/Garrison | Discovered exit to Recycling (range 10) 2107 | -8/Garrison | Triggered checkpoint 2201 | -8/Garrison | Attempted to access garrison exit controls, blocked by remote lockdown 2281 | -8/Garrison | Triggered checkpoint 2309 | -8/Garrison | Triggered checkpoint 2396 | -8/Garrison | Learned Recycling security intel 2423 | -8/Garrison | Discovered exit to Recycling (range 11) 2436 | -8/Garrison | Attempted to access garrison exit controls, blocked by remote lockdown 2483 | -8/Garrison | Triggered checkpoint 2525 | -8/Garrison | Triggered checkpoint 2691 | -8/Garrison | Triggered checkpoint 2781 | -8/Garrison | Discovered exit to Recycling (range 10) 2794 | -8/Garrison | Entered Recycling 2795 | -8/Recycling | Met a Zionite searching for Scraptown 2823 | -8/Recycling | Scanned before Scraplab entrance 2947 | -8/Recycling | Identified exit to Factory 2947 | -8/Recycling | Discovered exit to Factory (range 16) 4402 | -8/Recycling | Entered Factory 4402 | -6/Factory | Evolved 4 slots: Power x1, Propulsion x1, Utility x2 5472 | -6/Factory | Garrison activated, responded to threat 5683 | -6/Factory | Crushed by falling debris 5688 | -6/Factory | Crushed by falling debris 5690 | -6/Factory | Crushed by falling debris 5699 | -6/Factory | System corruption reached 10% 5721 | -6/Factory | Lost 3 parts (3u) 5987 | -6/Factory | Build established: Hacker-Tank 6256 | -6/Factory | Fabricated Cld. Plasma Cannon (x1) 6419 | -6/Factory | Fabricated Cld. Plasma Cannon (x1) 6677 | -6/Factory | Identified exit to Lower Caves 6677 | -6/Factory | Discovered exit to Lower Caves (range 8) 7142 | -6/Factory | Identified exit to Factory 7142 | -6/Factory | Discovered exit to Factory (range 4) 7155 | -6/Factory | Entered another Factory area 7155 | -5/Factory | Evolved 2 slots: Power x1, Weapon x1 7692 | -5/Factory | Repaired Hrd. Light Armor Plating 8054 | -5/Factory | Identified exit to Extension 8054 | -5/Factory | Discovered exit to Extension (range 9) 8068 | -5/Factory | Entered Extension 8160 | -5/Extension | Rescued a captive Derelict 8160 | -5/Extension | Rescued a captive Derelict 8443 | -5/Extension | Rescued A7 8467 | -5/Extension | Spotted B-75 Beast 8489 | -5/Extension | Destroyed B-75 Beast 8494 | -5/Extension | Spotted B-75 Beast 8509 | -5/Extension | Destroyed B-75 Beast 8519 | -5/Extension | Extracted ID and sensor layout for unrecognized location from A7's data core 8551 | -5/Extension | Destroyed 7 combat bots 8689 | -5/Extension | Build established: Scavenger-Tank 8718 | -5/Extension | Disrupted transfer network 8791 | -5/Extension | Identified exit to Cetus 8791 | -5/Extension | Discovered exit to Cetus (range 16) 8793 | -5/Extension | Identified exit to Factory 8793 | -5/Extension | Discovered exit to Factory (range 15) 8820 | -5/Extension | Entered Cetus 8844 | -5/Cetus | Spotted Cetus Guard 8844 | -5/Cetus | Spotted Cetus Guard 8847 | -5/Cetus | Spotted Cetus Guard 8847 | -5/Cetus | Spotted Cetus Guard 8857 | -5/Cetus | Destroyed Cetus Guard 8863 | -5/Cetus | Destroyed Cetus Guard 8872 | -5/Cetus | Destroyed Cetus Guard 8884 | -5/Cetus | Destroyed Cetus Guard 8901 | -5/Cetus | Lost 3 parts (1n2u) 9034 | -5/Cetus | Identified exit to Archives 9034 | -5/Cetus | Discovered exit to Archives (range 16) 9063 | -5/Cetus | Entered Archives 9161 | -5/Archives | Discovered exit to Factory (range 15) 9182 | -5/Archives | Unable to access archive contents 9190 | -5/Archives | Identified exit to Hub_04(d) 9190 | -5/Archives | Discovered exit to Hub_04(d) (range 15) 9218 | -5/Archives | Discovered exit to Hub_04(d) (range 15) 9262 | -5/Archives | Entered Hub_04(d) 9485 | -5/Hub_04(d) | Discovered exit to Factory (range 8) 9541 | -5/Hub_04(d) | Discovered exit to Factory (range 13) 9887 | -5/Hub_04(d) | Discovered exit to Factory (range 14) 9906 | -5/Hub_04(d) | Garrison activated, responded to threat 9929 | -5/Hub_04(d) | Entered Factory 9929 | -4/Factory | Evolved 2 slots: Propulsion x1, Utility x1 10120 | -4/Factory | Spotted B-86 Titan 10151 | -4/Factory | Destroyed B-86 Titan 10179 | -4/Factory | Lost 6 parts (2p1n2u1w) 11101 | -4/Factory | Spotted B-86 Titan 11128 | -4/Factory | Destroyed B-86 Titan 11399 | -4/Factory | Repaired Antimatter Cannon 11438 | -4/Factory | Identified exit to Research 11438 | -4/Factory | Discovered exit to Research (range 14) 11451 | -4/Factory | Entered Research 11451 | -3/Research | Evolved 2 slots: Power x1, Utility x1 11481 | -3/Research | Identified exit to Quarantine 11481 | -3/Research | Discovered exit to Quarantine (range 16) 11871 | -3/Research | Found Prototype Device 11872 | -3/Research | Identified Exp. Thermal Shield 11894 | -3/Research | Build established: Generator-Tank 11906 | -3/Research | Identified exit to Armory 11906 | -3/Research | Discovered exit to Armory (range 10) 11943 | -3/Research | Entered Armory 12234 | -3/Armory | Crushed by falling debris 12265 | -3/Armory | Lost 5 parts (1p3u1w) 12776 | -3/Armory | Spotted B-86 Titan 12840 | -3/Armory | Lost 6 parts (1p3n1u1w) 12893 | -3/Armory | Lost 7 parts (2p2n1u2w) 12992 | -3/Armory | Spotted Armor Guard 12992 | -3/Armory | Spotted Armor Guard 13018 | -3/Armory | Identified exit to Research 13018 | -3/Armory | Discovered exit to Research (range 3) 13019 | -3/Armory | Entered Research 13019 | -2/Research | Evolved 2 slots: Propulsion x1, Utility x1 13024 | -2/Research | Lost 8 parts (2p4n2u) 13053 | -2/Research | Spotted B-90 Cyclops 13373 | -2/Research | Build established: Hacker-Tank 13480 | -2/Research | Identified exit to Testing 13480 | -2/Research | Discovered exit to Testing (range 12) 13558 | -2/Research | Entered Testing 13624 | -2/Testing | Scanned by Researcher 14084 | -2/Testing | Lost 18 parts (5p3n4u6w) 14168 | -2/Testing | Core integrity fell below 50% 14168 | -2/Testing | System corruption reached 10% 14205 | -2/Testing | Spotted Striker 14228 | -2/Testing | Spotted Striker 14231 | -2/Testing | Spotted Alpha 7 14236 | -2/Testing | Spotted Alpha 7 14251 | -2/Testing | Core integrity fell below 20% 14262 | -2/Testing | Destroyed by H-88 Terminator with KE Penetrator Last Messages --------------- Acquired 3 matter. Penetrated by Slug. Slug penetrates Wall. Penetrated by Slug. Slug penetrates H-88 Terminator. Slug penetrates P-80 Master. Centrium Leg destroyed. Slug penetrates Y4-QZV(K). Critical hit (Impale). Slug penetrates Wall. Adv. Cloaking Device destroyed. Slug penetrates Y4-QZV(K). System corrupted: Energy discharge (-23). Penetrated by Slug. Research Terminal disabled. Penetrated by Slug. Slug penetrates Wall. Penetrated by Slug. H-88 Terminator suffers critical hit (Destroy). Penetrated by Slug. Map ----- +----------------------------------------------------+ | | | ????????????????????????????????? | | ????????????????????????????????? | | ????????????????????????????????? | | ????????????????????????????????? | | ????##########??????????????????? | | ????#"""" """#??????????????????? | | ????#" """#??????????????????? | | ????#" % &"#??????????????????? | | ???## ""#??????????????????? | | ???# % % ""#??????????????????? | | ???# ""#???##########?????? | | ???####+;#####??? #?????? | | ?????## ##???????""" #####?? | | ?????#% #?????""""" # #?? | | ?????## ##???# """"" # #?? | | ?????## #????? # ### | | ??####;7 #???????"""" ] # | | ### #; #???????"""" " | | #[ ph #???????"""" # | | #[ /h #????? !# | | #[ ##p #????# """"" # ### | | ## ## h#??????""""" # # | | ?# ## K#????????""" # + | | ?# ## #??????? # ### | | ?# ## @################## #?# | | ?# ## h# #?????????# #?# | | ?# ## h/ """ #?????????# #?# | | ?#!= ## # """" #?????????# ??# | | ?#%%!## # """" #?????????# ??# | | ?#!"### # " #?????????# ??# | | ?# ##?# # #?????????# ??#+# | | ?##???# ##########???????# #?# # | | ??????# ## """"" #???????# #?# # | | ??????# ## """"" #???????# #?# # | | ??????# ## """"" #???????# #?# # | | ??????# ## ????????# #?# # | | ?????## ## ??????????# #?# # | | ?????# ###+###########?# ### # | | ?????#! ! ### ## | | ?????# " | | ?????# !###+########+####### | | ?######+###? ?????? ?????## # | | ?# #?"""??????! ??????# # | | ?# # "G" ???? ?????# | | ?# ] # " " ???? [[/ ?????### | | ?# # #?? [[/ ??????? | | ?# # ! #?? [[/ ??????? | | ?# #! #? ?????? | | ?# ! #?###?#? ?????? | +----------------------------------------------------+ Best States ------------- Heat Dissipation 136 Coolant Potential 80 Energy Generation 93 Energy Capacity 1015 Matter Stores 300 Matter Capacity 600 Sight Range 16 Terrain Scan Density 10 Cloak Strength 4 Power Amplification 30 Additional Mass Support 6 Base Temperature (-) 200 Armor Coverage 450 Resistance: KI 65 Resistance: TH 65 Resistance: EX 35 Resistance: EM 35 Resistance: I 35 Resistance: S 35 Resistance: P 35 Power Shielding 66 Weapon Cycling 30 Phase Shifting 5 Evasion (%) 65 Targeting Accuracy 13 Recoil Reduction 6 Kinecelleration 40 Offensive Hacking 20 Authchip Count 2 Item Schematics ----------------- Adv. Beam Cannon | -6/Factory | Scanalyzed Hvy. Plasma Cannon | -6/Factory | Scanalyzed Cld. Plasma Cannon | -6/Factory | Scanalyzed Enh. Multireflex Exoskeleton | -2/Testing | Archive Cld. Impulse Thruster | -2/Testing | Archive Exp. Melee Analysis Suite | -2/Testing | Archive Adv. Remote Shield | -2/Testing | Archive Point Singularity Launcher | -2/Testing | Archive Com. Particle Reactor | -2/Testing | Archive Hvy. Dispersion Rifle | -2/Testing | Archive Robot Schematics ------------------ None Fabricated ------------ Cld. Plasma Cannon | x1 | -6/Factory | Authchip Cld. Plasma Cannon | x1 | -6/Factory | Authchip Repaired ---------- Hrd. Light Armor Plating | 14% | -5/Factory Antimatter Cannon | 15% | -4/Factory Alien Tech Used ----------------- None Achievements -------------- More Power To You Challenges ------------ None Game ------ Seed SlugGaussSuit Manual? 0 Play Time 02:17:12 Cumulative 25.4 hours Start 2025.05.31 @ 11:59:45 End 2025.05.31 @ 18:14:51 Sessions 3 Manual Loads 0 Difficulty Explorer Special Mode None Game No. 25 Rogue 0 Adventurer 0 Explorer 25 Win Type - Total 0 Types 0/0/0/0/0/0/0/0/0/0 Lore% 13 Gallery% 34 Achievement% 33 Wizard Run 0 Options --------- Layout 1 ASCII 0 Keyboard 0 Movement Mouse Keybinds 0 Fullscreen 1 Font 42/SmallcapsGlow Map View 52x41 Zoom Use 0% Tactical HUD 0 Map Filters NONE Filters NONE Steam 1 RUN: f0e9bcb2-3353-4c7c-8dea-ddf6f8f7e725